bitfinex/quotes_BTCUSD_20250221
["timestamp","ask_amount","ask_price","bid_price","bid_amount"]
[1740143346271,0.12576032,99430.0,99429.0,1.62826756]
[1740143346650,0.12576032,99430.0,99429.0,1.63526756]
[1740143347092,0.12576032,99430.0,99429.0,0.51799316]
[1740143347898,0.12576032,99430.0,99429.0,0.51099316]
[1740143348101,0.14576032,99430.0,99429.0,0.51799316]
[1740143348306,0.16576032,99430.0,99429.0,0.50991316]
[1740143348492,0.16576032,99430.0,99429.0,0.50291316]
[1740143348957,0.18030117,99430.0,99429.0,0.38181316]
[1740143349540,0.18030117,99430.0,99429.0,0.25371316]
[1740143349721,0.18030117,99430.0,99429.0,0.00704316]
[1740143351040,0.18030117,99430.0,99429.0,4.316e-05]
[1740143351241,0.18030117,99430.0,99429.0,0.00704316]
[1740143351465,0.18030117,99430.0,99429.0,4.316e-05]
[1740143351673,0.00076032,99430.0,99429.0,0.25268885]
[1740143351904,0.005,99444.0,99430.0,0.15]
[1740143352106,0.005,99444.0,99431.0,0.10345407]
[1740143352462,0.005,99444.0,99431.0,1.1179357]
[1740143353207,0.025,99444.0,99431.0,0.10345407]
[1740143353633,0.025,99444.0,99432.0,0.00808]
[1740143353862,0.025,99444.0,99433.0,0.10345419]
[1740143354081,0.015,99444.0,99433.0,0.10345419]
[1740143354691,0.02,99446.0,99433.0,1.11793582]
[1740143355016,0.0002,99449.0,99433.0,0.10345419]
[1740143355017,0.0008496,99444.0,99433.0,0.10345419]
[1740143355357,0.0008496,99444.0,99434.0,0.00808]
[1740143355558,0.0008496,99444.0,99435.0,0.10345404]
[1740143356385,0.0008496,99444.0,99442.0,0.01]
[1740143356921,0.0358496,99444.0,99443.0,0.00808]
[1740143357487,0.015,99443.0,99442.0,0.01]
[1740143357710,0.035,99443.0,99442.0,0.01]
[1740143357913,0.015,99443.0,99442.0,0.01080859]
[1740143358161,0.0008496,99444.0,99442.0,0.01080847]
[1740143358368,0.0008496,99444.0,99443.0,0.00080841]
[1740143358540,0.0008496,99444.0,99442.0,0.11345404]
[1740143358727,0.0008496,99444.0,99442.0,0.11264569]
[1740143358923,0.02,99443.0,99442.0,0.01]
[1740143359127,0.02,99443.0,99442.0,0.01808]
[1740143359333,0.02,99443.0,99442.0,0.02508]
[1740143359534,0.035,99443.0,99442.0,0.02508]
[1740143360134,0.035,99443.0,99442.0,0.01808]
[1740143360333,0.035,99443.0,99442.0,0.01]
[1740143360577,0.04954085,99443.0,99442.0,0.017]
[1740143360760,0.12624085,99443.0,99442.0,0.017]
[1740143362479,0.17574085,99443.0,99442.0,0.01]
[1740143362702,0.17574085,99443.0,99442.0,0.017]
[1740143363106,0.17574085,99443.0,99442.0,0.01]
[1740143363313,0.17574085,99443.0,99442.0,0.017]
[1740143363624,0.17574085,99443.0,99442.0,0.01]
[1740143364027,0.17574085,99443.0,99442.0,0.017]
[1740143364161,0.40162085,99443.0,99442.0,0.017]
[1740143365047,0.38162085,99443.0,99442.0,0.017]
[1740143365248,0.40162085,99443.0,99442.0,0.017]
[1740143365452,0.38162085,99443.0,99442.0,0.017]
[1740143365740,0.24088,99443.0,99442.0,0.017]
[1740143366106,0.2417296,99443.0,99442.0,0.017]
[1740143366412,0.2267296,99443.0,99442.0,0.017]
[1740143366795,0.2267296,99443.0,99442.0,0.01]
[1740143367026,0.2267296,99443.0,99442.0,0.017]
[1740143367174,0.2267296,99443.0,99442.0,0.04656473]
[1740143368048,0.2267296,99443.0,99442.0,0.29921042]
[1740143368248,0.16906,99470.0,99442.0,0.27768569]
[1740143368463,0.16906,99470.0,99444.0,0.15]
[1740143368589,0.16906,99470.0,99446.0,0.15]
[1740143368795,0.01454085,99469.0,99448.0,0.15]
[1740143369041,0.01454085,99469.0,99450.0,0.15]
[1740143369378,0.01454085,99472.0,99452.0,0.15]
[1740143369595,0.01454085,99472.0,99453.0,0.10345353]
[1740143370596,0.16906,99470.0,99453.0,0.10345353]
[1740143370899,0.16897133,99470.0,99454.0,0.00804]
[1740143371126,0.01454085,99472.0,99454.0,0.00804]
[1740143371127,0.01454085,99472.0,99455.0,0.0008079]
[1740143371353,0.0025,99501.0,99455.0,0.0008079]
[1740143371561,0.0025,99501.0,99454.0,0.00804]
[1740143371562,0.25343762,99470.0,99454.0,0.00804]
[1740143371766,0.25343762,99470.0,99453.0,0.10264569]
[1740143371979,0.25343762,99470.0,99455.0,0.00804]
[1740143372184,0.35608331,99470.0,99456.0,0.00808]
[1740143372388,0.25343762,99466.0,99453.0,0.007]
[1740143372607,0.01014097,99479.0,99454.0,0.12890824]
[1740143372817,0.25343762,99510.0,99460.0,0.15]
[1740143373022,0.01009963,99504.0,99461.0,0.00080727]
[1740143373228,0.25343762,99490.0,99462.0,0.15]
[1740143373432,0.25343762,99480.0,99462.0,0.15]
[1740143373612,0.25343762,99490.0,99463.0,0.00836]
[1740143373840,0.01454085,99489.0,99463.0,0.00916767]
[1740143374304,0.0149744,99489.0,99463.0,0.00080767]
[1740143374546,0.0149744,99489.0,99464.0,0.0084]
[1740143374752,0.0149744,99489.0,99465.0,0.00080762]
[1740143374958,0.0149744,99489.0,99466.0,0.00080763]
[1740143375692,0.0149744,99489.0,99466.0,0.00920763]
[1740143375908,0.25343762,99480.0,99466.0,0.0084]
[1740143376100,0.25343762,99480.0,99466.0,0.007]
[1740143376101,0.01454085,99479.0,99466.0,0.007]
[1740143376304,0.25343762,99480.0,99466.0,0.007]
[1740143376305,0.01454085,99477.0,99466.0,0.007]
[1740143376506,0.01454085,99475.0,99454.0,0.0084]
[1740143376703,0.01454085,99475.0,99466.0,0.007]
[1740143376908,0.01454085,99473.0,99466.0,0.007]
[1740143377143,0.01454085,99471.0,99452.0,0.08932004]
[1740143377345,0.17,99498.0,99452.0,0.08932004]
[1740143377346,0.01454085,99469.0,99466.0,0.007]
[1740143377710,0.09254085,99467.0,99466.0,0.007]
[1740143378069,0.19518654,99467.0,99466.0,0.007]
[1740143378897,0.19518654,99467.0,99463.0,0.35]
[1740143379100,0.01454085,99465.0,99463.0,0.35]
[1740143379462,0.11718654,99464.0,99463.0,0.35]
[1740143379884,0.25343762,99476.0,99463.0,0.35]
[1740143380084,0.25264569,99475.0,99463.0,0.35]
[1740143380294,0.0160489,99474.0,99463.0,0.35]
[1740143380603,0.01454085,99472.0,99463.0,0.35]
[1740143381019,0.15,99473.0,99463.0,0.35]
[1740143382041,0.15,99473.0,99463.0,0.357]
[1740143382262,0.00150806,99472.0,99463.0,0.35]
[1740143382520,0.10264569,99471.0,99463.0,0.35]
[1740143382765,0.16604899,99470.0,99463.0,0.357]
[1740143382992,0.01454085,99464.0,99463.0,0.35]
[1740143383220,0.11718654,99464.0,99463.0,0.357]
[1740143383668,0.11718654,99464.0,99463.0,0.35]
[1740143383823,0.11718654,99464.0,99463.0,0.357]
[1740143384430,0.34848654,99464.0,99463.0,0.357]
[1740143385638,0.34848654,99464.0,99463.0,0.3197637]
[1740143385877,0.34848654,99464.0,99463.0,0.3127637]
[1740143386078,0.34848654,99464.0,99463.0,0.19469605]
[1740143386276,0.34848654,99464.0,99463.0,0.18769605]
[1740143386705,0.34848654,99464.0,99463.0,0.19469605]
[1740143388173,0.26718654,99464.0,99463.0,0.19469605]
[1740143390884,0.25264569,99464.0,99463.0,0.19469605]
[1740143391086,0.128,99484.0,99463.0,0.19469605]
[1740143391087,0.26099884,99476.0,99463.0,0.19469605]
[1740143391312,0.10264569,99475.0,99463.0,0.19469605]
[1740143391470,0.25343762,99490.0,99463.0,0.19469605]
[1740143391675,0.10264569,99479.0,99463.0,0.19469605]
[1740143393075,0.00150799,99478.0,99463.0,0.19469605]
[1740143393231,0.10264569,99479.0,99463.0,0.19469605]
[1740143393819,0.10264569,99479.0,99463.0,0.18769605]
[1740143393986,0.16981485,99480.0,99463.0,0.18769605]
[1740143394325,0.16981485,99480.0,99463.0,0.19469605]
[1740143394552,0.16981485,99480.0,99463.0,0.18769605]
[1740143394756,0.16981485,99480.0,99463.0,0.19469605]
[1740143394967,0.16981485,99480.0,99463.0,0.18769605]
[1740143395370,0.16981485,99480.0,99463.0,0.19469605]
[1740143395502,0.16981485,99480.0,99463.0,0.18769605]
[1740143396002,0.16981485,99480.0,99463.0,0.19469605]
[1740143396842,0.0008495,99480.0,99463.0,0.19469605]
[1740143397050,0.16981485,99480.0,99463.0,0.18769605]
[1740143397452,0.0008495,99480.0,99464.0,0.12890789]
[1740143398747,0.16981485,99480.0,99464.0,0.12890789]
[1740143399110,0.16981485,99480.0,99465.0,0.00832]
[1740143399661,0.16981485,99480.0,99472.0,0.01]
[1740143401023,0.00150791,99479.0,99472.0,0.01]
[1740143402583,0.0008495,99480.0,99475.0,0.0804833]
[1740143402994,0.0008495,99480.0,99476.0,0.0792]
[1740143403207,0.0008495,99480.0,99477.0,0.05454]
[1740143403427,0.0008495,99480.0,99477.0,0.05534729]
[1740143403634,0.0008495,99480.0,99472.0,0.01]
[1740143404386,0.0008495,99480.0,99472.0,0.01080764]
[1740143404732,0.00043355,99489.0,99473.0,0.00080764]
[1740143405072,0.16896535,99483.0,99472.0,0.01]
[1740143405271,0.00043355,99489.0,99472.0,0.01]
[1740143405990,0.00043355,99489.0,99473.0,0.007]
[1740143406216,0.16896535,99483.0,99472.0,0.01]
[1740143406559,0.16896535,99483.0,99472.0,0.017]
[1740143406713,0.16896535,99483.0,99472.0,0.01]
[1740143407275,0.10415363,99482.0,99472.0,0.01]
[1740143407523,0.01454085,99480.0,99472.0,0.01]
[1740143407718,0.00043355,99489.0,99472.0,0.01]
[1740143407952,0.10307924,99489.0,99472.0,0.01]
[1740143408146,0.00043355,99489.0,99473.0,0.00080776]
[1740143408342,0.00043355,99489.0,99472.0,0.01]
[1740143408682,0.00043355,99489.0,99473.0,0.007]
[1740143408884,0.00043355,99489.0,99475.0,0.0804833]
[1740143409165,0.00043355,99489.0,99476.0,0.10345285]
[1740143409366,0.00043355,99489.0,99477.0,0.0477]
[1740143409514,0.00043355,99489.0,99478.0,0.10345285]
[1740143411904,0.00043355,99489.0,99478.0,0.11045285]
[1740143412323,0.00043355,99489.0,99478.0,0.10345285]
[1740143412507,0.00043355,99489.0,99479.0,0.00856]
[1740143412783,0.00043355,99489.0,99478.0,0.007]
[1740143412988,0.00043355,99489.0,99479.0,0.00856]
[1740143413548,0.00043355,99489.0,99479.0,0.01556]
[1740143413758,0.00043355,99489.0,99480.0,0.00856]
[1740143415530,0.00128415,99489.0,99477.0,0.0477]
[1740143415681,0.00128415,99489.0,99479.0,0.00856]
[1740143415888,0.00128415,99489.0,99479.0,0.01556]
[1740143416063,0.00128415,99489.0,99479.0,0.00856]
[1740143416450,0.11718654,99488.0,99480.0,0.007]
[1740143416656,0.00150789,99487.0,99472.0,0.01]
[1740143416853,0.150794,99473.0,99472.0,0.01]
[1740143417100,0.41798054,99473.0,99472.0,0.01]
[1740143417555,0.26718654,99473.0,99472.0,0.01]
[1740143417751,0.16896535,99482.0,99472.0,0.01]
[1740143417960,0.00279219,99489.0,99472.0,0.01]
[1740143418163,0.2554378,99489.0,99472.0,0.01]
[1740143418301,0.16896535,99482.0,99472.0,0.01]
[1740143418838,0.00150788,99481.0,99472.0,0.01]
[1740143419042,0.00150791,99480.0,99472.0,0.01]
[1740143419819,0.00128415,99489.0,99473.0,0.0491]
[1740143420011,0.00128415,99489.0,99479.0,0.007]
[1740143420348,0.00128415,99489.0,99484.0,0.0804833]
[1740143420551,0.000849,99500.0,99488.0,0.0801]
[1740143420781,0.000849,99500.0,99499.0,0.1605833]
[1740143421023,0.000849,99500.0,99499.0,1.18377201]
[1740143421439,0.000849,99500.0,99499.0,1.2864177]
[1740143421655,0.000849,99500.0,99499.0,1.30733465]
[1740143421863,0.000849,99500.0,99499.0,1.2864577]
[1740143422300,0.000849,99500.0,99499.0,1.18381201]
[1740143422517,0.11016467,99523.0,99499.0,1.18381201]
[1740143422733,0.02687885,99522.0,99500.0,0.00080679]
[1740143422949,0.11016467,99523.0,99500.0,0.10264569]
[1740143423162,0.11016467,99523.0,99501.0,0.00856]
[1740143423345,0.11016467,99523.0,99502.0,0.10264569]
[1740143423486,0.12282016,99523.0,99502.0,0.10264569]
[1740143423692,0.12282016,99523.0,99503.0,0.0086]
[1740143424295,0.12282016,99523.0,99509.0,0.0804833]
[1740143424510,0.12282016,99523.0,99510.0,0.00080647]
[1740143424711,0.12282016,99523.0,99509.0,1.09511201]
[1740143425868,0.11016467,99523.0,99510.0,0.18285208]
[1740143426555,0.11007444,99523.0,99510.0,0.09125551]
[1740143426963,0.16896535,99520.0,99510.0,0.09825551]
[1740143427776,0.16896535,99520.0,99511.0,0.00856]
[1740143427979,0.00150724,99519.0,99511.0,0.00856]
[1740143428357,0.00150724,99519.0,99510.0,0.0794]
[1740143428564,0.16896535,99520.0,99510.0,0.0864]
[1740143428781,0.11007444,99523.0,99511.0,0.10264569]
[1740143428987,0.11092494,99523.0,99511.0,0.10264569]
[1740143429203,0.11092494,99523.0,99511.0,0.10964569]
[1740143429380,0.11092494,99523.0,99512.0,0.01185551]
[1740143429580,0.11092494,99523.0,99513.0,0.10264569]
[1740143430492,0.27909029,99523.0,99512.0,0.01185551]
[1740143430685,0.27909029,99523.0,99512.0,0.02045551]
[1740143431037,0.27909029,99523.0,99511.0,0.01185551]
[1740143431249,0.10415291,99522.0,99511.0,0.01185551]
[1740143431594,0.27909029,99523.0,99511.0,0.01185551]
[1740143432019,0.27909029,99523.0,99511.0,0.01885551]
[1740143432452,0.27909029,99523.0,99511.0,0.01185551]
[1740143432662,0.27909029,99523.0,99504.0,0.01185551]
[1740143432873,0.27909029,99523.0,99511.0,0.007]
[1740143433417,0.27909029,99523.0,99504.0,0.01185551]
[1740143433541,0.27909029,99523.0,99511.0,0.007]
[1740143435010,0.27909029,99523.0,99511.0,0.00856]
[1740143435983,0.27909029,99523.0,99511.0,0.01556]
[1740143441872,0.27909029,99523.0,99511.0,0.02741551]
[1740143442321,0.27909029,99523.0,99520.0,0.01]
[1740143442488,0.11012494,99523.0,99520.0,0.01]
[1740143443570,0.11012494,99523.0,99520.0,0.01704316]
[1740143447312,0.18522185,99530.0,99520.0,0.01704316]
[1740143447313,0.16896535,99530.0,99520.0,0.01704316]
[1740143447559,0.1704726,99530.0,99520.0,0.01704316]
[1740143448388,0.1704726,99530.0,99520.0,0.01004316]
[1740143448624,0.16896535,99530.0,99520.0,0.01704316]
[1740143448830,0.10415294,99529.0,99520.0,0.01704316]
[1740143449044,0.01454085,99528.0,99520.0,0.01704316]
[1740143449254,0.150721,99521.0,99520.0,0.01704316]
[1740143449466,0.00150741,99521.0,99520.0,0.14434316]
[1740143449669,0.16896535,99530.0,99520.0,0.14434316]
[1740143449877,0.00150727,99529.0,99520.0,0.01704316]
[1740143450058,0.10415297,99528.0,99520.0,0.01004316]
[1740143450296,0.10415297,99528.0,99520.0,0.01704316]
[1740143451332,0.00150728,99528.0,99520.0,0.01704316]
[1740143451571,0.0015073,99528.0,99521.0,0.01185551]
[1740143451772,0.00150728,99529.0,99521.0,0.01185551]
[1740143452182,0.16896535,99530.0,99521.0,0.01185551]
[1740143452183,0.17047261,99530.0,99521.0,0.01185551]
[1740143452385,0.16896535,99540.0,99522.0,0.0804833]
[1740143452536,0.16896535,99532.0,99522.0,0.0804833]
[1740143452738,0.00150714,99531.0,99522.0,0.0804833]
[1740143452939,0.00150714,99531.0,99522.0,0.09233881]
[1740143453148,0.17047249,99532.0,99522.0,0.09233881]
[1740143453656,0.17047249,99532.0,99522.0,0.09933881]
[1740143453819,0.0008501,99528.0,99522.0,0.01885551]
[1740143454418,0.0008501,99528.0,99523.0,0.01859472]
[1740143454616,0.0008501,99528.0,99523.0,0.03045023]
[1740143455992,0.0008501,99528.0,99524.0,0.01859472]
[1740143456809,0.0008501,99528.0,99524.0,0.03045023]
[1740143457415,0.0008501,99528.0,99524.0,0.03035414]
[1740143457836,0.0008501,99528.0,99524.0,0.01185551]
[1740143458440,0.0008501,99528.0,99525.0,0.01185551]
[1740143460145,0.0008501,99528.0,99526.0,0.01185551]
[1740143460554,0.00150718,99527.0,99526.0,0.01185551]
[1740143460757,0.10415287,99527.0,99526.0,0.01185551]
[1740143460960,0.15,99526.0,99525.0,1e-08]
[1740143461178,0.25264569,99526.0,99525.0,1e-08]
[1740143461384,0.0008501,99528.0,99520.0,0.07584316]
[1740143461560,0.0008501,99528.0,99520.0,4.316e-05]
[1740143461779,0.0008501,99528.0,99525.0,0.007]
[1740143462108,0.0008501,99528.0,99520.0,4.316e-05]
[1740143462311,0.00150731,99527.0,99525.0,0.007]
[1740143462654,0.00150731,99527.0,99520.0,4.316e-05]
[1740143462655,0.150721,99521.0,99520.0,4.316e-05]
[1740143462858,0.254874,99521.0,99520.0,4.316e-05]
[1740143463074,0.25336669,99521.0,99520.0,4.316e-05]
[1740143463499,0.41790754,99521.0,99520.0,4.316e-05]
[1740143464837,0.42547911,99521.0,99520.0,4.316e-05]
[1740143465036,0.42547911,99521.0,99501.0,0.08932004]
[1740143465037,0.150746,99505.0,99501.0,0.08932004]
[1740143465264,0.150746,99505.0,99504.0,0.00174336]
[1740143465265,0.41793254,99505.0,99504.0,0.00174336]
[1740143466042,0.25264569,99505.0,99504.0,0.00174336]
[1740143466207,0.40339169,99505.0,99504.0,0.00174336]
[1740143466407,0.25264569,99505.0,99504.0,0.00174336]
[1740143466663,0.40339169,99505.0,99504.0,0.00174336]
[1740143467830,0.41793254,99505.0,99504.0,0.00174336]
[1740143469020,0.74033254,99505.0,99504.0,0.00174336]
[1740143469227,0.74133254,99505.0,99504.0,0.00874336]
[1740143469425,0.150768,99490.0,99489.0,0.08932004]
[1740143469635,0.25341369,99490.0,99489.0,0.08936322]
[1740143469839,0.26795454,99490.0,99489.0,0.08936322]
[1740143470042,0.41795454,99490.0,99489.0,0.00500582]
[1740143470663,0.42548465,99490.0,99489.0,0.00500582]
[1740143471195,0.1101758,99490.0,99489.0,4.318e-05]
[1740143471395,0.00085,99533.0,99489.0,4.318e-05]
[1740143471396,0.15180723,99525.0,99489.0,4.318e-05]
[1740143471598,0.16896535,99499.0,99490.0,0.0804833]
[1740143471804,0.00150768,99498.0,99489.0,4.318e-05]
[1740143472208,0.00150768,99498.0,99490.0,0.01856608]
[1740143472410,0.16896535,99499.0,99490.0,0.01856608]
[1740143472762,0.00250773,99499.0,99490.0,0.02556608]
[1740143472924,0.001,99499.0,99490.0,0.02556608]
[1740143473543,0.16896535,99500.0,99490.0,0.01856608]
[1740143473847,0.00150757,99499.0,99491.0,0.01856608]
[1740143474060,0.010803,99496.0,99491.0,0.01856608]
[1740143475402,0.010803,99496.0,99492.0,0.01856608]
[1740143475627,0.00150771,99495.0,99492.0,0.01856608]
[1740143476255,0.1041534,99495.0,99492.0,0.01856608]
[1740143476475,0.40340969,99493.0,99492.0,0.01856608]
[1740143476706,0.58958654,99493.0,99457.0,0.0804]
[1740143476920,0.3343002,99473.0,99472.0,0.00043355]
[1740143477187,0.43958654,99473.0,99472.0,0.00043355]
[1740143477432,0.3224,99473.0,99472.0,0.00043355]
[1740143478469,0.42504569,99473.0,99472.0,0.00043355]
[1740143478710,0.3224,99473.0,99472.0,0.00043355]
[1740143479147,0.3224,99473.0,99472.0,0.00743355]
[1740143479353,0.32244,99473.0,99472.0,0.00043355]
[1740143479807,0.32244,99473.0,99472.0,0.00243355]
[1740143480007,0.150808,99465.0,99463.0,0.18939725]
[1740143480209,0.11718654,99464.0,99463.0,0.18939725]
[1740143480415,0.59867484,99464.0,99463.0,0.16884804]
[1740143480573,0.61716667,99464.0,99463.0,0.12657139]
[1740143480911,0.61716667,99464.0,99463.0,6.5e-07]
[1740143481122,0.300846,99439.0,99438.0,0.08896609]
[1740143481327,0.74793948,99439.0,99438.0,0.08896609]
[1740143481498,0.74793948,99439.0,99438.0,0.08332709]
[1740143481678,0.74793948,99439.0,99438.0,0.01782709]
[1740143481879,0.77658379,99439.0,99438.0,0.01281]
[1740143482093,0.74793948,99439.0,99438.0,0.01281]
[1740143482474,0.74893948,99439.0,99438.0,0.01785354]
[1740143482676,0.74893948,99439.0,99438.0,0.01475063]
[1740143482898,0.300864,99427.0,99426.0,0.0016992]
[1740143483144,0.300864,99427.0,99426.0,0.00175145]
[1740143483145,0.41805054,99427.0,99426.0,0.00175145]
[1740143485292,0.76145054,99427.0,99426.0,0.00175145]
[1740143485539,0.76045054,99427.0,99426.0,0.00175145]
[1740143485745,0.74145054,99427.0,99426.0,0.00175145]
[1740143485976,0.72690969,99427.0,99426.0,0.00175145]
[1740143486185,0.74145054,99427.0,99426.0,0.00175145]
[1740143486598,0.74045054,99427.0,99426.0,0.00175145]
[1740143486801,0.74145054,99427.0,99426.0,0.00175145]
[1740143487206,0.76145054,99427.0,99426.0,0.00175145]
[1740143487645,0.74145054,99427.0,99426.0,0.00175145]
[1740143488411,0.74045054,99427.0,99426.0,0.00175145]
[1740143488626,0.74145054,99427.0,99426.0,0.00275145]
[1740143491273,0.300897,99405.0,99404.0,0.0016998]
[1740143491475,0.25264569,99405.0,99404.0,0.00176524]
[1740143491587,0.25388584,99414.0,99404.0,0.00176524]
[1740143491793,0.25388584,99414.0,99405.0,0.0804833]
[1740143491995,0.201182,99412.0,99405.0,0.0804833]
[1740143492197,0.001509,99411.0,99405.0,0.0804833]
[1740143492453,0.150896,99406.0,99405.0,0.0804833]
[1740143492689,0.201189,99409.0,99404.0,0.00176524]
[1740143492864,0.150897,99405.0,99404.0,0.00176524]
[1740143493214,0.15240615,99405.0,99404.0,0.00176524]
[1740143494035,0.001,99411.0,99404.0,0.00176524]
[1740143494248,0.001,99411.0,99406.0,0.0804833]
[1740143494446,0.001,99411.0,99407.0,0.0481]
[1740143494663,0.25388584,99420.0,99407.0,0.0481]
[1740143494915,0.25388584,99430.0,99417.0,0.0804833]
[1740143495123,0.25388584,99430.0,99427.0,0.0804833]
[1740143495340,0.25388584,99437.0,99428.0,0.0829]
[1740143495771,0.3224,99463.0,99428.0,0.0829]
[1740143495772,0.25388584,99450.0,99429.0,0.045]
[1740143495986,0.25388584,99440.0,99439.0,0.0804833]
[1740143496193,0.35653153,99449.0,99439.0,0.0804833]
[1740143496407,0.0015085,99448.0,99439.0,0.0804833]
[1740143496619,0.201115,99446.0,99429.0,0.045]
[1740143496831,0.25388584,99439.0,99431.0,0.00872]
[1740143497258,0.25388584,99439.0,99431.0,0.00878544]
[1740143497499,0.25388584,99439.0,99437.0,0.0804833]
[1740143497696,0.25388584,99447.0,99437.0,0.0804833]
[1740143499066,0.25488584,99447.0,99437.0,0.0864833]
[1740143499279,0.150844,99441.0,99437.0,0.0804833]
[1740143499479,0.00150849,99446.0,99437.0,0.0864833]
[1740143499684,0.001,99447.0,99437.0,0.0864833]
[1740143499685,0.0025085,99447.0,99437.0,0.0864833]
[1740143500041,0.2036215,99447.0,99437.0,0.0864833]
[1740143500238,0.0015085,99447.0,99437.0,0.0804833]
[1740143501204,0.0015085,99446.0,99437.0,0.0804833]
[1740143501327,0.150847,99438.0,99437.0,0.0804833]
[1740143501526,0.0015085,99439.0,99437.0,0.0804833]
[1740143501791,0.202114,99446.0,99437.0,0.0864833]
[1740143502027,0.150853,99435.0,99431.0,0.00878544]
[1740143502238,0.0015086,99434.0,99431.0,6.544e-05]
[1740143502422,0.150856,99432.0,99431.0,6.544e-05]
[1740143502609,0.15236463,99432.0,99431.0,6.544e-05]
[1740143503173,0.25501032,99432.0,99431.0,6.544e-05]
[1740143503443,0.25350169,99432.0,99431.0,0.00706544]
[1740143505431,0.25350169,99432.0,99431.0,6.544e-05]
[1740143505629,0.25450169,99432.0,99431.0,0.00506544]
[1740143506036,0.25350169,99432.0,99431.0,0.00383023]
[1740143506251,0.10364569,99432.0,99431.0,0.00883023]
[1740143506425,0.001,99432.0,99431.0,0.00883023]
[1740143506664,0.00150863,99439.0,99431.0,0.00383023]
[1740143506900,0.001,99432.0,99431.0,0.00883023]
[1740143508587,0.00150863,99439.0,99431.0,0.00383023]
[1740143508828,0.001,99432.0,99431.0,0.01083023]
[1740143509012,0.00150863,99439.0,99431.0,0.00383023]
[1740143509217,0.25388584,99450.0,99434.0,0.0804833]
[1740143509370,0.00150852,99449.0,99444.0,0.0804833]
[1740143509577,0.3224,99472.0,99444.0,0.0804833]
[1740143509578,0.25388584,99460.0,99444.0,0.0804833]
[1740143509773,0.25388584,99460.0,99445.0,0.0772]
[1740143511526,0.00150822,99459.0,99445.0,0.0772]
[1740143511730,0.25388584,99460.0,99445.0,0.0772]
[1740143511971,0.00150822,99459.0,99445.0,0.0772]
[1740143512215,0.25388584,99460.0,99445.0,0.0772]
[1740143512815,0.00150822,99459.0,99445.0,0.0772]
[1740143513043,0.25388584,99460.0,99445.0,0.0772]
[1740143513904,0.25388584,99460.0,99446.0,0.0458]
[1740143514082,0.25388584,99460.0,99446.0,0.1262833]
[1740143514288,0.25388584,99470.0,99446.0,1.14091201]
[1740143514539,0.00150818,99469.0,99447.0,0.00080839]
[1740143515132,0.25388584,99470.0,99448.0,0.00080839]
[1740143515352,0.25388584,99470.0,99446.0,1.14091201]
[1740143516301,0.00150814,99469.0,99446.0,1.14791201]
[1740143516523,0.25473684,99460.0,99446.0,0.1332833]
[1740143516753,0.150821,99456.0,99447.0,0.00864]
[1740143517071,0.00150829,99455.0,99447.0,0.00864]
[1740143517294,0.00150829,99455.0,99446.0,0.1332833]
[1740143517462,0.201097,99454.0,99446.0,0.0458]
[1740143517670,0.201102,99452.0,99446.0,0.0458]
[1740143517876,0.10415408,99451.0,99446.0,0.007]
[1740143518076,0.150834,99447.0,99446.0,0.007]
[1740143518314,0.1523425,99447.0,99446.0,0.007]
[1740143518679,0.25498819,99447.0,99446.0,0.007]
[1740143519038,0.25347969,99447.0,99446.0,0.007]
[1740143520750,0.25347969,99447.0,99446.0,0.01077881]
[1740143521745,0.25347969,99447.0,99446.0,0.00377881]
[1740143522300,0.40347969,99447.0,99446.0,0.00377881]
[1740143522502,0.41802054,99447.0,99446.0,0.00377881]
[1740143523512,0.41802054,99447.0,99446.0,0.01077881]
[1740143525025,0.41802054,99447.0,99446.0,0.00377881]
[1740143525466,0.41802054,99447.0,99446.0,0.01077881]
[1740143525734,0.41802054,99447.0,99446.0,0.00377881]
[1740143525938,0.41802054,99447.0,99446.0,0.00977881]
[1740143526389,0.40347969,99447.0,99446.0,0.00377881]
[1740143526546,0.25264569,99447.0,99446.0,0.01077881]
[1740143526747,0.000851,99460.0,99446.0,0.09297881]
[1740143526970,0.150834,99447.0,99446.0,0.00377881]
[1740143527371,0.10415423,99447.0,99446.0,0.00377881]
[1740143527765,0.25498823,99447.0,99446.0,0.00377881]
[1740143527985,0.25347969,99447.0,99446.0,0.00377881]
[1740143528354,0.25347969,99447.0,99446.0,0.01077881]
[1740143528662,0.25347969,99447.0,99446.0,0.00377881]
[1740143529075,0.25347969,99447.0,99446.0,0.01077881]
[1740143529275,0.10264569,99447.0,99431.0,6.544e-05]
[1740143529454,0.201126,99440.0,99431.0,6.544e-05]
[1740143529682,0.25388584,99441.0,99431.0,6.544e-05]
[1740143529894,0.150851,99436.0,99431.0,6.544e-05]
[1740143530097,0.0015086,99440.0,99431.0,6.544e-05]
[1740143530277,0.0015086,99439.0,99431.0,6.544e-05]
[1740143530453,0.150856,99432.0,99431.0,6.544e-05]
[1740143531784,0.150856,99432.0,99431.0,0.00706544]
[1740143532124,0.1523637,99433.0,99431.0,0.00706544]
[1740143532465,0.150856,99432.0,99431.0,0.00706544]
[1740143533753,0.150856,99432.0,99431.0,6.544e-05]
[1740143534380,0.150856,99432.0,99431.0,0.003852]
[1740143534381,0.25501042,99432.0,99431.0,0.003852]
[1740143534658,0.25350169,99432.0,99431.0,0.003852]
[1740143535290,0.25350169,99432.0,99431.0,0.010852]
[1740143535531,0.25350169,99432.0,99431.0,0.003852]
[1740143535959,0.40350169,99432.0,99431.0,0.010852]
[1740143536178,0.41804254,99432.0,99431.0,0.010852]
[1740143537315,0.41804254,99432.0,99431.0,0.00706544]
[1740143538282,0.40350169,99432.0,99431.0,0.00706544]
[1740143538686,0.40350169,99432.0,99431.0,6.544e-05]
[1740143538863,0.40350169,99432.0,99431.0,0.00706544]
[1740143539510,0.40350169,99432.0,99431.0,6.544e-05]
[1740143539923,0.40350169,99432.0,99431.0,0.00706544]
[1740143540103,0.40350169,99432.0,99431.0,6.544e-05]
[1740143540474,0.40350169,99432.0,99431.0,0.00706544]
[1740143553647,0.40350169,99432.0,99431.0,0.00876664]
[1740143553890,0.10349629,99432.0,99431.0,0.00876664]
[1740143554105,0.25435229,99432.0,99431.0,0.00876664]
[1740143554552,0.26177419,99432.0,99431.0,0.00876664]
[1740143561792,0.26181419,99432.0,99431.0,0.00876664]
[1740143562009,0.41181419,99432.0,99431.0,0.00876664]
[1740143562216,0.42635504,99432.0,99431.0,0.00876664]
[1740143564533,0.42635504,99432.0,99431.0,1e-08]
[1740143565004,0.150873,99421.0,99420.0,0.001702]
[1740143565138,0.25502774,99421.0,99420.0,0.00178462]
[1740143565352,0.25351869,99421.0,99420.0,0.00178462]